[Event "Mistrovství Čech mládeže 2023 - HD16"]
[Site "Harrachov, Czech Republic"]
[Date "2023.10.24"]
[Round "5.7"]
[White "Vyšinský, Otakar"]
[Black "Dvořák, Jan"]
[Result "1/2-1/2"]
[TimeControl "90m + 30s"]
[WhiteElo "1599"]
[BlackElo "1789"]

1. e4 {[%clk 01:30:53]} {[%emt 00:00:07]} e5 {[%clk 01:30:34]} {[%emt
00:00:27]} 2. Nf3 {[%clk 01:31:13]} {[%emt 00:00:09]} Nc6 {[%clk 01:30:55]}
{[%emt 00:00:09]} 3. d4 {[%clk 01:31:30]} {[%emt 00:00:13]} exd4 {[%clk
01:30:44]} {[%emt 00:00:42]} 4. Bc4 {[%clk 01:31:41]} {[%emt 00:00:19]} Bc5
{[%clk 01:25:11]} {[%emt 00:06:03]} 5. c3 {[%clk 01:31:57]} {[%emt 00:00:14]}
dxc3 {[%clk 01:24:25]} {[%emt 00:01:15]} 6. Bxf7+ {[%clk 01:32:06]} {[%emt
00:00:22]} Kxf7 {[%clk 01:22:56]} {[%emt 00:02:00]} 7. Qd5+ {[%clk 01:32:24]}
{[%emt 00:00:11]} Ke8 {[%clk 01:22:43]} {[%emt 00:00:43]} 8. Qxc5 {[%clk
01:31:44]} {[%emt 00:01:11]} Qe7 {[%clk 01:17:01]} {[%emt 00:06:12]} 9. Qxe7+
{[%clk 01:22:09]} {[%emt 00:10:05]} Ngxe7 {[%clk 01:16:55]} {[%emt 00:00:35]}
10. Nxc3 {[%clk 01:22:03]} {[%emt 00:00:36]} h6 {[%clk 01:13:55]} {[%emt
00:03:31]} 11. O-O {[%clk 01:19:39]} {[%emt 00:02:54]} d6 {[%clk 01:12:12]}
{[%emt 00:02:13]} 12. Be3 {[%clk 01:13:06]} {[%emt 00:07:03]} g5 {[%clk
00:58:22]} {[%emt 00:14:21]} 13. Rac1 {[%clk 01:07:39]} {[%emt 00:05:57]} Rf8
{[%clk 00:54:05]} {[%emt 00:04:47]} 14. Nd4 {[%clk 01:00:24]} {[%emt 00:07:46]}
Rf7 {[%clk 00:48:10]} {[%emt 00:06:25]} 15. Ncb5 {[%clk 00:49:43]} {[%emt
00:11:11]} Kd8 {[%clk 00:47:33]} {[%emt 00:01:07]} 16. Rfd1 {[%clk 00:49:41]}
{[%emt 00:00:32]} a6 {[%clk 00:45:28]} {[%emt 00:02:35]} 17. Nc3 {[%clk
00:44:39]} {[%emt 00:05:31]} Nxd4 {[%clk 00:41:37]} {[%emt 00:04:21]} 18. Bxd4
{[%clk 00:43:55]} {[%emt 00:01:15]} Be6 {[%clk 00:39:19]} {[%emt 00:02:48]} 19.
e5 {[%clk 00:37:04]} {[%emt 00:07:21]} d5 {[%clk 00:38:30]} {[%emt 00:01:19]}
20. Bc5 {[%clk 00:36:49]} {[%emt 00:00:44]} c6 {[%clk 00:38:08]} {[%emt
00:00:52]} 21. Ne4 {[%clk 00:35:07]} {[%emt 00:02:12]} Ng6 {[%clk 00:33:06]}
{[%emt 00:05:31]} 22. Bb6+ {[%clk 00:31:19]} {[%emt 00:04:18]} Ke7 {[%clk
00:31:05]} {[%emt 00:02:30]} 23. Nd6 {[%clk 00:24:13]} {[%emt 00:07:38]} Rh7
{[%clk 00:29:48]} {[%emt 00:01:46]} 24. Bc5 {[%clk 00:20:28]} {[%emt 00:04:15]}
Kd8 {[%clk 00:27:25]} {[%emt 00:02:53]} 25. Nc4 {[%clk 00:18:28]} {[%emt
00:02:30]} Ke8 {[%clk 00:21:49]} {[%emt 00:06:06]} 26. Nb6 {[%clk 00:15:50]}
{[%emt 00:03:09]} Rd8 {[%clk 00:20:50]} {[%emt 00:01:28]} 27. Bd6 {[%clk
00:15:22]} {[%emt 00:00:58]} Nh4 {[%clk 00:18:59]} {[%emt 00:02:21]} 28. Na4
{[%clk 00:11:55]} {[%emt 00:03:57]} Nf5 {[%clk 00:18:18]} {[%emt 00:01:11]} 29.
Bc5 {[%clk 00:11:05]} {[%emt 00:01:21]} h5 {[%clk 00:13:48]} {[%emt 00:04:59]}
30. Bb6 {[%clk 00:10:41]} {[%emt 00:00:54]} Rb8 {[%clk 00:12:55]} {[%emt
00:01:24]} 31. Nc5 {[%clk 00:10:13]} {[%emt 00:00:58]} Re7 {[%clk 00:11:45]}
{[%emt 00:01:39]} 32. Re1 {[%clk 00:08:53]} {[%emt 00:01:51]} Kf7 {[%clk
00:10:39]} {[%emt 00:01:35]} 33. Rcd1 {[%clk 00:07:31]} {[%emt 00:01:52]}
1/2-1/2

[Event "Mistrovství Čech mládeže 2023 - HD16"]
[Site "Harrachov, Czech Republic"]
[Date "2023.10.24"]
[Round "5.8"]
[White "Síleš, Jan"]
[Black "Dobsa, Emma"]
[Result "1-0"]
[TimeControl "90m + 30s"]
[WhiteElo "1839"]
[BlackElo "1616"]

1. d4 {[%clk 01:30:57]} {[%emt 00:00:02]} d5 {[%clk 01:30:46]} {[%emt
00:00:14]} 2. c4 {[%clk 01:31:16]} {[%emt 00:00:11]} c6 {[%clk 01:31:13]}
{[%emt 00:00:03]} 3. Nc3 {[%clk 01:31:40]} {[%emt 00:00:05]} Nf6 {[%clk
01:31:40]} {[%emt 00:00:04]} 4. e3 {[%clk 01:31:56]} {[%emt 00:00:15]} e6
{[%clk 01:32:00]} {[%emt 00:00:10]} 5. Nf3 {[%clk 01:31:53]} {[%emt 00:00:32]}
Nbd7 {[%clk 01:32:26]} {[%emt 00:00:04]} 6. Bd3 {[%clk 01:30:31]} {[%emt
00:01:52]} dxc4 {[%clk 01:32:53]} {[%emt 00:00:03]} 7. Bxc4 {[%clk 01:30:52]}
{[%emt 00:00:09]} b5 {[%clk 01:33:20]} {[%emt 00:00:03]} 8. Bd3 {[%clk
01:30:30]} {[%emt 00:00:51]} Bb7 {[%clk 01:33:45]} {[%emt 00:00:05]} 9. O-O
{[%clk 01:28:56]} {[%emt 00:02:03]} a6 {[%clk 01:33:49]} {[%emt 00:00:28]} 10.
e4 {[%clk 01:13:03]} {[%emt 00:16:23]} c5 {[%clk 01:31:23]} {[%emt 00:02:56]}
11. d5 {[%clk 01:11:56]} {[%emt 00:01:37]} exd5 {[%clk 01:25:24]} {[%emt
00:06:29]} 12. exd5 {[%clk 01:10:43]} {[%emt 00:01:44]} Nxd5 {[%clk 01:20:24]}
{[%emt 00:05:29]} 13. Nxd5 {[%clk 01:04:48]} {[%emt 00:06:25]} Bxd5 {[%clk
01:20:46]} {[%emt 00:00:08]} 14. Bxb5 {[%clk 01:04:42]} {[%emt 00:00:36]} axb5
{[%clk 01:19:45]} {[%emt 00:01:31]} 15. Qxd5 {[%clk 01:05:00]} {[%emt
00:00:12]} Ra6 {[%clk 01:11:43]} {[%emt 00:08:33]} 16. Ng5 {[%clk 00:50:04]}
{[%emt 00:15:26]} Qf6 {[%clk 01:06:42]} {[%emt 00:05:31]} 17. Rd1 {[%clk
00:46:57]} {[%emt 00:03:37]} Nb6 {[%clk 01:04:33]} {[%emt 00:02:38]} 18. Qb7
{[%clk 00:41:37]} {[%emt 00:05:50]} Ra8 {[%clk 01:04:53]} {[%emt 00:00:10]} 19.
Nxf7 {[%clk 00:33:04]} {[%emt 00:09:03]} Qxf7 {[%clk 01:03:15]} {[%emt
00:02:07]} 20. Qc6+ {[%clk 00:32:56]} {[%emt 00:00:38]} Ke7 {[%clk 01:02:59]}
{[%emt 00:00:46]} 21. Bg5+ {[%clk 00:33:04]} 1-0

[Event "Mistrovství Čech mládeže 2023 - HD16"]
[Site "Harrachov, Czech Republic"]
[Date "2023.10.24"]
[Round "5.9"]
[White "Sadil, Antonín"]
[Black "Večeř, Martin"]
[Result "0-1"]
[TimeControl "90m + 30s"]
[WhiteElo "1792"]
[BlackElo "1569"]

1. e4 {[%clk 01:30:53]} {[%emt 00:00:06]} c6 {[%clk 01:30:52]} {[%emt
00:00:08]} 2. d4 {[%clk 01:31:08]} {[%emt 00:00:15]} d5 {[%clk 01:31:15]}
{[%emt 00:00:07]} 3. exd5 {[%clk 01:31:07]} {[%emt 00:00:31]} cxd5 {[%clk
01:31:36]} {[%emt 00:00:09]} 4. Bd3 {[%clk 01:31:27]} {[%emt 00:00:09]} Nc6
{[%clk 01:31:39]} {[%emt 00:00:27]} 5. c3 {[%clk 01:31:49]} {[%emt 00:00:08]}
Nf6 {[%clk 01:31:38]} {[%emt 00:00:31]} 6. h3 {[%clk 01:32:10]} {[%emt
00:00:10]} g6 {[%clk 01:31:01]} {[%emt 00:01:07]} 7. Bf4 {[%clk 01:32:31]}
{[%emt 00:00:10]} Bg7 {[%clk 01:31:01]} {[%emt 00:00:30]} 8. Nf3 {[%clk
01:32:16]} {[%emt 00:00:45]} O-O {[%clk 01:30:30]} {[%emt 00:01:01]} 9. Nbd2
{[%clk 01:31:26]} {[%emt 00:01:19]} Bf5 {[%clk 01:28:35]} {[%emt 00:02:25]} 10.
Bxf5 {[%clk 01:31:40]} {[%emt 00:00:16]} gxf5 {[%clk 01:29:00]} {[%emt
00:00:06]} 11. g4 {[%clk 01:24:56]} {[%emt 00:07:13]} e6 {[%clk 01:18:59]}
{[%emt 00:10:31]} 12. Ne5 {[%clk 01:14:59]} {[%emt 00:10:27]} Nxe5 {[%clk
01:12:54]} {[%emt 00:06:36]} 13. Bxe5 {[%clk 01:14:57]} {[%emt 00:00:31]} Ne4
{[%clk 01:12:28]} {[%emt 00:00:57]} 14. Bxg7 {[%clk 01:13:28]} {[%emt
00:01:58]} Kxg7 {[%clk 01:10:35]} {[%emt 00:02:23]} 15. gxf5 {[%clk 01:10:51]}
{[%emt 00:03:07]} exf5 {[%clk 01:10:34]} {[%emt 00:00:31]} 16. Nxe4 {[%clk
01:10:48]} {[%emt 00:00:33]} Re8 {[%clk 01:06:38]} {[%emt 00:04:27]} 17. Rg1+
{[%clk 01:09:22]} {[%emt 00:01:55]} Kh8 {[%clk 01:06:57]} {[%emt 00:00:11]} 18.
Qh5 {[%clk 01:08:44]} {[%emt 00:01:08]} Rxe4+ {[%clk 01:04:16]} {[%emt
00:03:12]} 19. Kd2 {[%clk 01:08:48]} {[%emt 00:00:25]} Qb6 {[%clk 00:58:33]}
{[%emt 00:06:13]} 20. Kc2 {[%clk 00:57:26]} {[%emt 00:11:51]} Rae8 {[%clk
00:48:28]} {[%emt 00:10:36]} 21. Qg5 {[%clk 00:55:42]} {[%emt 00:02:13]} Re2+
{[%clk 00:47:28]} {[%emt 00:01:30]} 22. Kd1 {[%clk 00:56:02]} {[%emt 00:00:10]}
Qg6 {[%clk 00:47:38]} {[%emt 00:00:21]} 23. Qg3 {[%clk 00:53:47]} {[%emt
00:02:46]} f4 {[%clk 00:44:14]} {[%emt 00:03:54]} 24. Qxg6 {[%clk 00:52:22]}
{[%emt 00:01:54]} fxg6 {[%clk 00:44:38]} {[%emt 00:00:06]} 25. Rc1 {[%clk
00:51:17]} {[%emt 00:01:33]} Rxf2 {[%clk 00:42:24]} {[%emt 00:02:46]} 26. Rc2
{[%clk 00:51:44]} {[%emt 00:00:02]} Rxc2 {[%clk 00:38:45]} {[%emt 00:04:09]} 27.
Kxc2 {[%clk 00:52:12]} {[%emt 00:00:02]} Re2+ {[%clk 00:38:31]} {[%emt
00:00:44]} 28. Kb3 {[%clk 00:51:39]} {[%emt 00:01:04]} f3 {[%clk 00:37:39]}
{[%emt 00:01:22]} 29. Kb4 {[%clk 00:51:40]} {[%emt 00:00:29]} f2 {[%clk
00:36:29]} {[%emt 00:01:40]} 30. Rf1 {[%clk 00:52:08]} {[%emt 00:00:02]} Kg7
{[%clk 00:36:28]} {[%emt 00:00:31]} 31. Kc5 {[%clk 00:52:17]} {[%emt 00:00:22]}
Kf7 {[%clk 00:36:38]} {[%emt 00:00:17]} 32. Kxd5 {[%clk 00:52:33]} {[%emt
00:00:17]} Ke7 {[%clk 00:36:05]} {[%emt 00:01:03]} 33. b4 {[%clk 00:52:00]}
{[%emt 00:01:03]} Rxa2 {[%clk 00:35:22]} {[%emt 00:01:13]} 34. Ke4 {[%clk
00:51:07]} {[%emt 00:01:22]} b6 {[%clk 00:34:13]} {[%emt 00:01:39]} 35. c4
{[%clk 00:48:55]} {[%emt 00:02:42]} a5 {[%clk 00:32:37]} {[%emt 00:02:07]} 36.
bxa5 {[%clk 00:48:48]} {[%emt 00:00:37]} bxa5 {[%clk 00:33:03]} {[%emt
00:00:04]} 37. Kd5 {[%clk 00:48:22]} {[%emt 00:00:55]} Kd7 {[%clk 00:32:49]}
{[%emt 00:00:44]} 38. c5 {[%clk 00:48:09]} {[%emt 00:00:43]} Rb2 {[%clk
00:32:14]} {[%emt 00:01:05]} 39. Ra1 {[%clk 00:46:51]} {[%emt 00:01:48]} a4
{[%clk 00:31:29]} {[%emt 00:01:15]} 40. Kc4 {[%clk 00:45:37]} {[%emt 00:01:43]}
a3 {[%clk 00:31:22]} {[%emt 00:00:37]} 41. d5 {[%clk 00:44:12]} {[%emt
00:01:54]} a2 {[%clk 00:31:20]} {[%emt 00:00:33]} 42. c6+ {[%clk 00:43:54]}
{[%emt 00:00:49]} Kd6 {[%clk 00:31:09]} {[%emt 00:00:40]} 43. Kd4 {[%clk
00:43:17]} {[%emt 00:01:07]} Rb1 {[%clk 00:31:27]} {[%emt 00:00:12]} 44. c7
{[%clk 00:43:08]} {[%emt 00:00:39]} Kxc7 {[%clk 00:31:42]} {[%emt 00:00:16]} 45.
Rxa2 {[%clk 00:43:28]} {[%emt 00:00:09]} f1=Q {[%clk 00:32:01]} {[%emt
00:00:10]} 46. Ra7+ {[%clk 00:43:24]} {[%emt 00:00:35]} Kb6 {[%clk 00:31:55]}
{[%emt 00:00:35]} 47. Rxh7 {[%clk 00:43:24]} {[%emt 00:00:31]} Qf2+ {[%clk
00:32:00]} {[%emt 00:00:26]} 48. Ke5 {[%clk 00:43:34]} {[%emt 00:00:20]} Re1+
{[%clk 00:31:42]} {[%emt 00:00:49]} 49. Kd6 {[%clk 00:43:48]} {[%emt 00:00:15]}
Qc5 {[%clk 00:32:07]} {[%emt 00:00:06]} 0-1

[Event "Mistrovství Čech mládeže 2023 - HD16"]
[Site "Harrachov, Czech Republic"]
[Date "2023.10.24"]
[Round "5.10"]
[White "Maršík, Ondřej"]
[Black "Kaplanová, Dominika"]
[Result "0-1"]
[TimeControl "90m + 30s"]
[WhiteElo "1459"]
[BlackElo "1782"]

1. e4 {[%clk 01:30:58]} {[%emt 00:00:02]} c6 {[%clk 01:30:38]} {[%emt
00:00:22]} 2. d4 {[%clk 01:31:09]} {[%emt 00:00:18]} d5 {[%clk 01:30:53]}
{[%emt 00:00:15]} 3. exd5 {[%clk 01:31:04]} {[%emt 00:00:36]} cxd5 {[%clk
01:30:47]} {[%emt 00:00:35]} 4. c4 {[%clk 01:31:27]} {[%emt 00:00:08]} Nf6
{[%clk 01:30:41]} {[%emt 00:00:35]} 5. Nc3 {[%clk 01:31:41]} {[%emt 00:00:17]}
g6 {[%clk 01:30:23]} {[%emt 00:00:47]} 6. Nf3 {[%clk 01:31:23]} {[%emt
00:00:48]} Bg7 {[%clk 01:29:57]} {[%emt 00:00:56]} 7. h3 {[%clk 01:31:06]}
{[%emt 00:00:47]} O-O {[%clk 01:29:41]} {[%emt 00:00:46]} 8. Bg5 {[%clk
01:28:45]} {[%emt 00:02:50]} Ne4 {[%clk 01:26:15]} {[%emt 00:03:57]} 9. Be3
{[%clk 01:19:54]} {[%emt 00:09:22]} Nxc3 {[%clk 01:22:26]} {[%emt 00:04:18]} 10.
bxc3 {[%clk 01:20:16]} {[%emt 00:00:09]} Nc6 {[%clk 01:22:17]} {[%emt
00:00:39]} 11. Be2 {[%clk 01:16:29]} {[%emt 00:04:17]} dxc4 {[%clk 01:19:38]}
{[%emt 00:03:09]} 12. Bxc4 {[%clk 01:16:15]} {[%emt 00:00:43]} Qc7 {[%clk
01:18:10]} {[%emt 00:01:57]} 13. Bd3 {[%clk 01:11:04]} {[%emt 00:05:42]} Be6
{[%clk 01:13:22]} {[%emt 00:05:17]} 14. Qc1 {[%clk 01:04:32]} {[%emt 00:07:03]}
Rac8 {[%clk 01:09:10]} {[%emt 00:04:42]} 15. O-O {[%clk 00:57:57]} {[%emt
00:07:05]} Na5 {[%clk 01:02:22]} {[%emt 00:07:19]} 16. Bd2 {[%clk 00:57:03]}
{[%emt 00:01:24]} Bc4 {[%clk 00:59:33]} {[%emt 00:03:19]} 17. Bxc4 {[%clk
00:52:15]} {[%emt 00:05:19]} Nxc4 {[%clk 00:58:12]} {[%emt 00:01:51]} 18. Bh6
{[%clk 00:50:04]} {[%emt 00:02:41]} Nb6 {[%clk 00:54:20]} {[%emt 00:04:21]} 19.
Bxg7 {[%clk 00:46:21]} {[%emt 00:04:14]} Kxg7 {[%clk 00:54:42]} {[%emt
00:00:07]} 20. Qa3 {[%clk 00:45:36]} {[%emt 00:01:15]} Nd5 {[%clk 00:42:32]}
{[%emt 00:12:39]} 21. Rac1 {[%clk 00:39:11]} {[%emt 00:06:55]} b5 {[%clk
00:39:11]} {[%emt 00:03:51]} 22. Rfe1 {[%clk 00:32:35]} {[%emt 00:07:07]} e6
{[%clk 00:34:10]} {[%emt 00:05:30]} 23. Ne5 {[%clk 00:27:53]} {[%emt 00:05:12]}
Nxc3 {[%clk 00:28:17]} {[%emt 00:06:24]} 24. Nd3 {[%clk 00:20:58]} {[%emt
00:07:25]} a5 {[%clk 00:24:41]} {[%emt 00:04:06]} 25. Nc5 {[%clk 00:18:35]}
{[%emt 00:02:53]} b4 {[%clk 00:23:26]} {[%emt 00:01:45]} 26. Qb2 {[%clk
00:16:25]} {[%emt 00:02:40]} Qd6 {[%clk 00:19:54]} {[%emt 00:04:02]} 27. Nb7
{[%clk 00:07:58]} {[%emt 00:08:57]} Qd5 {[%clk 00:17:05]} {[%emt 00:03:18]} 28.
Re3 {[%clk 00:06:41]} {[%emt 00:01:48]} Na4 {[%clk 00:14:59]} {[%emt 00:02:36]}
29. Qa1 {[%clk 00:02:11]} {[%emt 00:05:02]} Rxc1+ {[%clk 00:14:23]} {[%emt
00:01:05]} 30. Qxc1 {[%clk 00:02:39]} {[%emt 00:00:02]} Qxb7 {[%clk 00:14:27]}
{[%emt 00:00:26]} 31. Rf3 {[%clk 00:01:03]} {[%emt 00:02:06]} Nc3 {[%clk
00:13:58]} {[%emt 00:00:58]} 32. a3 {[%clk 00:00:57]} {[%emt 00:00:37]} Ne2+
{[%clk 00:14:18]} {[%emt 00:00:08]} 0-1

[Event "Mistrovství Čech mládeže 2023 - HD16"]
[Site "Harrachov, Czech Republic"]
[Date "2023.10.24"]
[Round "5.11"]
[White "Svoboda, Daniel"]
[Black "Barták, Josef"]
[Result "0-1"]
[TimeControl "90m + 30s"]
[WhiteElo "1766"]
[BlackElo "1476"]

1. e4 {[%clk 01:30:58]} {[%emt 00:00:01]} e5 {[%clk 01:30:56]} {[%emt
00:00:04]} 2. Nf3 {[%clk 01:31:14]} {[%emt 00:00:14]} Nc6 {[%clk 01:31:20]}
{[%emt 00:00:06]} 3. Nc3 {[%clk 01:31:37]} {[%emt 00:00:07]} Nf6 {[%clk
01:31:43]} {[%emt 00:00:07]} 4. d4 {[%clk 01:32:02]} {[%emt 00:00:05]} exd4
{[%clk 01:32:07]} {[%emt 00:00:06]} 5. Nxd4 {[%clk 01:32:28]} {[%emt 00:00:05]}
Bb4 {[%clk 01:32:25]} {[%emt 00:00:13]} 6. Nxc6 {[%clk 01:32:39]} {[%emt
00:00:19]} bxc6 {[%clk 01:32:47]} {[%emt 00:00:07]} 7. Bd3 {[%clk 01:33:02]}
{[%emt 00:00:06]} d5 {[%clk 01:32:50]} {[%emt 00:00:28]} 8. exd5 {[%clk
01:33:08]} {[%emt 00:00:25]} cxd5 {[%clk 01:32:20]} {[%emt 00:00:59]} 9. O-O
{[%clk 01:32:35]} {[%emt 00:01:02]} O-O {[%clk 01:32:43]} {[%emt 00:00:07]} 10.
h3 {[%clk 01:32:48]} {[%emt 00:00:17]} c6 {[%clk 01:27:51]} {[%emt 00:05:22]}
11. Qf3 {[%clk 01:32:03]} {[%emt 00:01:15]} Re8 {[%clk 01:25:00]} {[%emt
00:03:22]} 12. Bf4 {[%clk 01:30:55]} {[%emt 00:01:38]} Bb7 {[%clk 01:20:20]}
{[%emt 00:05:09]} 13. a3 {[%clk 01:21:17]} {[%emt 00:10:08]} Bd6 {[%clk
01:18:42]} {[%emt 00:02:08]} 14. Rfe1 {[%clk 01:16:18]} {[%emt 00:05:29]} Qc7
{[%clk 01:17:26]} {[%emt 00:01:46]} 15. Bg5 {[%clk 01:09:05]} {[%emt 00:07:43]}
Nd7 {[%clk 01:09:20]} {[%emt 00:08:37]} 16. Qh5 {[%clk 00:54:05]} {[%emt
00:15:29]} g6 {[%clk 01:06:11]} {[%emt 00:03:39]} 17. Qh4 {[%clk 00:52:47]}
{[%emt 00:01:48]} Qb6 {[%clk 00:54:25]} {[%emt 00:12:17]} 18. Ne2 {[%clk
00:45:54]} {[%emt 00:07:22]} Ba6 {[%clk 00:43:50]} {[%emt 00:11:05]} 19. Bxa6
{[%emt 00:30:16]} Qxa6 {[%clk 00:43:53]} {[%emt 00:00:26]} 20. Nc3 {[%clk
00:13:56]} {[%emt 00:02:42]} Qb6 {[%clk 00:35:48]} {[%emt 00:08:36]} 21. b4
{[%clk 00:08:04]} {[%emt 00:06:21]} Be5 {[%clk 00:27:39]} {[%emt 00:08:39]} 22.
Bd2 {[%clk 00:08:08]} {[%emt 00:00:26]} Re6 {[%clk 00:25:13]} {[%emt 00:02:57]}
23. Rad1 {[%clk 00:05:54]} {[%emt 00:02:43]} Rae8 {[%clk 00:23:22]} {[%emt
00:02:20]} 24. Be3 {[%clk 00:03:52]} {[%emt 00:02:33]} Bf6 {[%clk 00:15:17]}
{[%emt 00:08:35]} 25. Qg4 {[%clk 00:02:05]} {[%emt 00:02:16]} h5 {[%clk
00:12:38]} {[%emt 00:03:10]} 26. Qe2 {[%clk 00:01:10]} {[%emt 00:01:26]} Bxc3
{[%clk 00:12:20]} {[%emt 00:00:48]} 27. Qd3 {[%clk 00:00:38]} {[%emt 00:01:01]}
d4 {[%clk 00:11:52]} {[%emt 00:00:59]} 28. Qxc3 {[%clk 00:00:37]} {[%emt
00:00:31]} dxc3 {[%clk 00:12:11]} {[%emt 00:00:11]} 0-1

[Event "Mistrovství Čech mládeže 2023 - HD16"]
[Site "Harrachov, Czech Republic"]
[Date "2023.10.24"]
[Round "5.12"]
[White "Kohm, Patrik"]
[Black "Garabik, Marek"]
[Result "0-1"]
[TimeControl "90m + 30s"]
[WhiteElo "1475"]
[BlackElo "1697"]

1. e4 {[%clk 01:30:51]} {[%emt 00:00:08]} e6 {[%clk 01:30:34]} {[%emt
00:00:27]} 2. d3 {[%clk 01:31:05]} {[%emt 00:00:15]} d5 {[%clk 01:28:51]}
{[%emt 00:02:13]} 3. Qe2 {[%clk 01:31:09]} {[%emt 00:00:26]} dxe4 {[%clk
01:19:36]} {[%emt 00:09:46]} 4. dxe4 {[%clk 01:31:29]} {[%emt 00:00:10]} e5
{[%clk 01:18:01]} {[%emt 00:02:05]} 5. Nf3 {[%clk 01:31:33]} {[%emt 00:00:25]}
Nc6 {[%clk 01:17:28]} {[%emt 00:01:04]} 6. Be3 {[%clk 01:29:15]} {[%emt
00:02:47]} Nf6 {[%clk 01:11:59]} {[%emt 00:05:59]} 7. Nbd2 {[%clk 01:26:40]}
{[%emt 00:03:05]} Bd6 {[%clk 01:07:27]} {[%emt 00:05:02]} 8. Nc4 {[%clk
01:18:23]} {[%emt 00:08:47]} Nxe4 {[%clk 00:50:22]} {[%emt 00:17:35]} 9. Nfxe5
{[%clk 01:09:01]} {[%emt 00:09:52]} Nxe5 {[%clk 00:45:23]} {[%emt 00:05:29]} 10.
Bf4 {[%clk 01:03:04]} {[%emt 00:06:27]} Nxc4 {[%clk 00:40:24]} {[%emt
00:05:30]} 11. Qxe4+ {[%clk 01:00:46]} {[%emt 00:02:47]} Qe7 {[%clk 00:40:00]}
{[%emt 00:00:54]} 12. Qxe7+ {[%clk 00:57:48]} {[%emt 00:03:29]} Kxe7 {[%clk
00:40:20]} {[%emt 00:00:10]} 0-1

[Event "Mistrovství Čech mládeže 2023 - HD16"]
[Site "Harrachov, Czech Republic"]
[Date "2023.10.24"]
[Round "5.13"]
[White "Martinkovič, Adam"]
[Black "Lána, Vincent"]
[Result "1-0"]
[TimeControl "90m + 30s"]
[WhiteElo "1680"]
[BlackElo "1342"]

1. e4 {[%clk 01:26:28]} {[%emt 00:04:31]} e6 {[%clk 01:30:50]} {[%emt
00:00:10]} 2. Nf3 {[%clk 01:24:08]} {[%emt 00:02:50]} d5 {[%clk 01:31:09]}
{[%emt 00:00:12]} 3. e5 {[%clk 01:22:48]} {[%emt 00:01:50]} c5 {[%clk
01:31:19]} {[%emt 00:00:19]} 4. b4 {[%clk 01:23:12]} {[%emt 00:00:07]} cxb4
{[%clk 01:30:52]} {[%emt 00:00:57]} 5. a3 {[%clk 01:23:36]} {[%emt 00:00:07]}
Nc6 {[%clk 01:29:19]} {[%emt 00:02:02]} 6. axb4 {[%clk 01:22:40]} {[%emt
00:01:26]} Bxb4 {[%clk 01:28:49]} {[%emt 00:00:59]} 7. c3 {[%clk 01:23:03]}
{[%emt 00:00:07]} Be7 {[%clk 01:28:44]} {[%emt 00:00:35]} 8. d4 {[%clk
01:23:21]} {[%emt 00:00:12]} Qb6 {[%clk 01:26:02]} {[%emt 00:03:12]} 9. Bd3
{[%clk 01:22:14]} {[%emt 00:01:36]} Bd7 {[%clk 01:17:30]} {[%emt 00:09:03]} 10.
O-O {[%clk 01:21:58]} {[%emt 00:00:46]} f6 {[%clk 01:11:49]} {[%emt 00:06:11]}
11. Bf4 {[%clk 01:20:32]} {[%emt 00:01:56]} fxe5 {[%clk 01:10:19]} {[%emt
00:02:00]} 12. Nxe5 {[%clk 01:20:51]} {[%emt 00:00:12]} Nf6 {[%clk 01:08:16]}
{[%emt 00:02:33]} 13. Nxd7 {[%clk 01:20:32]} {[%emt 00:00:50]} Kxd7 {[%clk
01:07:41]} {[%emt 00:01:05]} 14. Re1 {[%clk 01:20:11]} {[%emt 00:00:51]} Bd6
{[%clk 00:56:13]} {[%emt 00:11:58]} 15. Be5 {[%clk 01:16:20]} {[%emt 00:04:22]}
Qc7 {[%clk 00:53:26]} {[%emt 00:03:17]} 16. f4 {[%clk 01:16:12]} {[%emt
00:00:38]} Qb6 {[%clk 00:49:09]} {[%emt 00:04:47]} 17. Kh1 {[%clk 01:16:28]}
{[%emt 00:00:14]} Rhf8 {[%clk 00:45:30]} {[%emt 00:04:08]} 18. Na3 {[%clk
01:15:01]} {[%emt 00:01:57]} Bxe5 {[%clk 00:42:43]} {[%emt 00:03:17]} 19. dxe5
{[%clk 01:14:35]} {[%emt 00:00:57]} Ne8 {[%clk 00:40:22]} {[%emt 00:02:50]} 20.
Qd2 {[%clk 01:13:41]} {[%emt 00:01:24]} g6 {[%clk 00:38:49]} {[%emt 00:02:04]}
21. Reb1 {[%clk 01:13:49]} {[%emt 00:00:23]} Qc7 {[%clk 00:36:44]} {[%emt
00:02:34]} 22. c4 {[%clk 01:11:16]} {[%emt 00:03:04]} Ne7 {[%clk 00:32:10]}
{[%emt 00:05:03]} 23. cxd5 {[%clk 01:08:21]} {[%emt 00:03:24]} Nxd5 {[%clk
00:32:09]} {[%emt 00:00:32]} 24. Be4 {[%clk 01:08:23]} {[%emt 00:00:28]} Ke7
{[%clk 00:21:24]} {[%emt 00:11:14]} 25. Bxd5 {[%clk 01:08:02]} {[%emt
00:00:52]} exd5 {[%clk 00:21:43]} {[%emt 00:00:10]} 26. Qxd5 {[%clk 01:07:50]}
{[%emt 00:00:43]} Rd8 {[%clk 00:18:44]} {[%emt 00:03:29]} 27. Qe4 {[%clk
01:07:46]} {[%emt 00:00:34]} Rd7 {[%clk 00:16:39]} {[%emt 00:02:35]} 28. Nb5
{[%clk 01:06:53]} {[%emt 00:01:24]} Qc6 {[%clk 00:14:43]} {[%emt 00:02:25]} 29.
Qb4+ {[%clk 01:06:25]} {[%emt 00:00:58]} Kf7 {[%clk 00:12:31]} {[%emt
00:02:42]} 30. Nxa7 {[%clk 01:06:29]} {[%emt 00:00:26]} Qc2 {[%clk 00:11:43]}
{[%emt 00:01:17]} 31. e6+ {[%clk 01:06:29]} {[%emt 00:00:31]} Kxe6 {[%clk
00:11:25]} {[%emt 00:00:48]} 32. Qxf8 {[%clk 01:06:45]} {[%emt 00:00:13]} Nf6
{[%clk 00:07:42]} {[%emt 00:04:13]} 33. Rb6+ {[%clk 01:05:47]} {[%emt
00:01:28]} Kd5 {[%clk 00:05:44]} {[%emt 00:02:28]} 34. Qxf6 {[%clk 01:05:55]}
{[%emt 00:00:22]} Kc4 {[%clk 00:05:48]} {[%emt 00:00:26]} 35. Qe6+ {[%clk
01:05:54]} {[%emt 00:00:31]} 1-0